Workbook

Sheet alapadatok
B1: irány | C1: 0 | D1: 1 | E1: 0 | F1: 1 | G1: 0 | H1: 0 | I1: nincs
C2: fő | D2: % | E2: % | F2: hónap/fő | G2: hónap/fő | H2: % | I2: eFt
C3: érintettek száma | D3: kockázat (érintettek) | E3: súlyossági fok | F3: várható elhalálozás | G3: élettartam-többlet | H3: többlet minősége | I3: ár
B4: OAM | C4: attr1 | D4: attr2 | E4: attr3 | F4: attr4 | G4: attr5 | H4: attr6 | I4: attr7
B5: pályázat1 | C5: 18 | D5: 0 | E5: 0 | F5: 99999 | G5: 36 | H5: 100 | I5: =800*18 -> 14400
B6: pályázat2 | C6: 1 | D6: 0 | E6: 0 | F6: 99999 | G6: 0 | H6: 100 | I6: 2400
B7: pályázat3 | C7: 1 | D7: 0 | E7: 100 | F7: 12 | G7: 84 | H7: 75 | I7: 5200
B8: pályázat4 | C8: 1 | D8: 0 | E8: 100 | F8: 5 | G8: 72 | H8: 33 | I8: 6500
B9: pályázat5 | C9: 5642 | D9: 0 | E9: 3 | F9: 80 | G9: 1 | H9: 90 | I9: 4300
B10: pályázat6 | C10: 1000 | D10: 33 | E10: 0 | F10: 99999 | G10: 0 | H10: 100 | I10: 5600
B11: pályázat7 | C11: 2222 | D11: 0 | E11: 10 | F11: 33 | G11: 3 | H11: 88 | I11: 6100
B12: pályázat8 | C12: 130000 | D12: 0 | E12: 1 | F12: 111 | G12: 12 | H12: 88 | I12: 7200
J13: =CORREL(J16:J23,K16:K23) -> -0.1885540874
K14: eFt
B15: =B4 -> OAM | C15: =C4 -> attr1 | D15: attr2 | E15: attr3 | F15: attr4 | G15: attr5 | H15: attr6 | I15: Y0 | J15: Naiv | K15: ÁR
B16: =B5 -> pályázat1 | C16: =RANK(C5,C$5:C$12,C$1) -> 5 | D16: =RANK(D5,D$5:D$12,D$1) -> 1 | E16: 6 | F16: 6 | G16: 3 | H16: 1 | I16: 1000 | J16: =SUM(C16:H16) -> 22 | K16: =I5 -> 14400
B17: pályázat2 | C17: =RANK(C6,C$5:C$12,C$1) -> 6 | D17: 1 | E17: 6 | F17: 6 | G17: 7 | H17: 1 | I17: 1000 | J17: =SUM(C17:H17) -> 27 | K17: =I6 -> 2400
B18: pályázat3 | C18: 6 | D18: 1 | E18: 1 | F18: 2 | G18: 1 | H18: 7 | I18: 1000 | J18: 18 | K18: 5200
B19: pályázat4 | C19: 6 | D19: 1 | E19: 1 | F19: 1 | G19: 2 | H19: 8 | I19: 1000 | J19: 19 | K19: 6500
B20: pályázat5 | C20: 2 | D20: 1 | E20: 4 | F20: 4 | G20: 6 | H20: 4 | I20: 1000 | J20: 21 | K20: 4300
B21: pályázat6 | C21: 4 | D21: 8 | E21: 6 | F21: 6 | G21: 7 | H21: 1 | I21: 1000 | J21: 32 | K21: 5600
B22: pályázat7 | C22: 3 | D22: 1 | E22: 3 | F22: 3 | G22: 5 | H22: 5 | I22: 1000 | J22: 20 | K22: 6100
B23: pályázat8 | C23: 1 | D23: 1 | E23: 5 | F23: 5 | G23: 4 | H23: 5 | I23: 1000 | J23: 21 | K23: 7200
C27: =C16 -> 5 | D27: =D16 -> 1 | E27: 6 | F27: 6 | G27: 3 | H27: 1 | I27: =K16 -> 14400
C28: =C17 -> 6 | D28: 1 | E28: 6 | F28: 6 | G28: 7 | H28: 1 | I28: =K17 -> 2400
C29: =C18 -> 6 | D29: 1 | E29: 1 | F29: 2 | G29: 1 | H29: 7 | I29: 5200
C30: =C19 -> 6 | D30: 1 | E30: 1 | F30: 1 | G30: 2 | H30: 8 | I30: 6500
C31: =C20 -> 2 | D31: 1 | E31: 4 | F31: 4 | G31: 6 | H31: 4 | I31: 4300
C32: =C21 -> 4 | D32: 8 | E32: 6 | F32: 6 | G32: 7 | H32: 1 | I32: 5600
C33: =C22 -> 3 | D33: 1 | E33: 3 | F33: 3 | G33: 5 | H33: 5 | I33: 6100
C34: =C23 -> 1 | D34: 1 | E34: 5 | F34: 5 | G34: 4 | H34: 5 | I34: =K23 -> 7200
C37: =C27 -> 5 | D37: =D27 -> 1 | E37: 6 | F37: 6 | G37: 3 | H37: =I27 -> 14400
C38: =C28 -> 6 | D38: 1 | E38: 6 | F38: 6 | G38: 7 | H38: =I28 -> 2400
C39: =C29 -> 6 | D39: 1 | E39: 1 | F39: 2 | G39: 1 | H39: =I29 -> 5200
C40: =C30 -> 6 | D40: 1 | E40: 1 | F40: 1 | G40: 2 | H40: =I30 -> 6500
C41: =C31 -> 2 | D41: 1 | E41: 4 | F41: 4 | G41: 6 | H41: =I31 -> 4300
C42: =C32 -> 4 | D42: 8 | E42: 6 | F42: 6 | G42: 7 | H42: =I32 -> 5600
C43: =C33 -> 3 | D43: 1 | E43: 3 | F43: 3 | G43: 5 | H43: =I33 -> 6100
C44: =C34 -> 1 | D44: 1 | E44: 5 | F44: 5 | G44: 4 | H44: =I34 -> 7200

Sheet riport3
A3: Sorcímkék | B3: Mennyiség / csontsűrűség
A4: -4 | B4: 3
A5: -3 | B5: 5
A6: -2 | B6: 3
A7: -1 | B7: 1
A8: 0 | B8: 2
A9: Végösszeg | B9: 14

Sheet riport2
B3: Oszlopcímkék
B4: 50 | C4: 60 | D4: 70 | E4: Végösszeg
A5: Mennyiség / kor | B5: 5 | C5: 6 | D5: 3 | E5: 14

Sheet macro
A3: Mennyiség / csontsűrűség | B3: Oszlopcímkék
A4: Sorcímkék | B4: 50 | C4: 60 | D4: 70 | E4: Végösszeg
A5: -4 | B5: 1 | C5: 1 | D5: 1 | E5: 3
A6: -3 | B6: 2 | C6: 2 | D6: 1 | E6: 5
A7: -2 | B7: 1 | C7: 2 | E7: 3
A8: -1 | D8: 1 | E8: 1
A9: 0 | B9: 1 | C9: 1 | E9: 2
A10: Végösszeg | B10: 5 | C10: 6 | D10: 3 | E10: 14

Sheet riportok
E2: a=nem lehet 0-nál nagyobb súllyal kezdeni, B=csak 2 pontos lehet, C=nem érdemes kis súllyal kezdni, D=ellenjavalt
A3: Mennyiség / kiindulási súly | B3: Oszlopcímkék
A4: Sorcímkék | B4: 0 | C4: 3 | D4: Végösszeg
A5: 1 | B5: 1 | C5: 4 | D5: 5
A6: 2 | B6: 2 | C6: 1 | D6: 3
A7: 3 | B7: 2 | C7: 1 | D7: 3
A8: 4 | B8: 1 | C8: 2 | D8: 3
A9: Végösszeg | B9: 6 | C9: 8 | D9: 14
A11: Mennyiség / felfüggsztési pontok száma | B11: Oszlopcímkék
A12: Sorcímkék | B12: 1 | C12: 2 | D12: 3 | E12: Végösszeg
A13: 1 | B13: 2 | C13: 1 | D13: 2 | E13: 5
A14: 2 | B14: 1 | C14: 1 | D14: 1 | E14: 3
A15: 3 | B15: 1 | C15: 1 | D15: 1 | E15: 3
A16: 4 | B16: 1 | C16: 1 | D16: 1 | E16: 3
A17: Végösszeg | B17: 5 | C17: 4 | D17: 5 | E17: 14

Sheet 2dm_log
A1: element | B1: sourceX | C1: sourceY | D1: sourceW | E1: sourceH | F1: targetX | G1: targetY | H1: targetW | I1: targetH
A2: M00-H12 | B2: 782 | C2: 131 | D2: 127 | E2: 127 | F2: 392 | G2: 383 | H2: 141 | I2: 142
A3: M30-H12 | B3: 972 | C3: 131 | D3: 127 | E3: 127 | F3: 392 | G3: 239 | H3: 141 | I3: 142
A4: M00-H18 | B4: 1162 | C4: 131 | D4: 127 | E4: 127 | F4: 249 | G4: 383 | H4: 141 | I4: 142
A5: M30-H18 | B5: 782 | C5: 321 | D5: 127 | E5: 127 | F5: 249 | G5: 239 | H5: 141 | I5: 142
A6: M49-H03 | B6: 972 | C6: 321 | D6: 127 | E6: 127 | F6: 535 | G6: 526 | H6: 141 | I6: 140
A7: M00-H03 | B7: 1162 | C7: 321 | D7: 127 | E7: 127 | F7: 535 | G7: 383 | H7: 141 | I7: 142
A8: M49-H18 | B8: 782 | C8: 511 | D8: 127 | E8: 127 | F8: 249 | G8: 526 | H8: 141 | I8: 140
A9: M49-H12 | B9: 972 | C9: 511 | D9: 127 | E9: 127 | F9: 392 | G9: 526 | H9: 141 | I9: 140
A10: M30-H03 | B10: 1162 | C10: 511 | D10: 127 | E10: 127 | F10: 535 | G10: 239 | H10: 141 | I10: 142
A12: time | B12: event | C12: element | D12: x | E12: y | F12: game
A13: 0 | B13: START | C13: ALL | D13: 0 | E13: 0 | F13: AD_CLOCK
A14: 1776 | B14: pointerdown | C14: M00-H12 | D14: 795.333374 | E14: 142 | F14: AD_CLOCK
A15: 1839 | B15: pointermove | C15: M00-H12 | D15: 795.333374 | E15: 142.6666718 | F15: AD_CLOCK
A16: 1880 | B16: pointermove | C16: M00-H12 | D16: 794 | E16: 144.6666718 | F16: AD_CLOCK
A17: 1894 | B17: pointermove | C17: M00-H12 | D17: 792 | E17: 148.6666718 | F17: AD_CLOCK
A18: 1911 | B18: pointermove | C18: M00-H12 | D18: 788.666687 | E18: 155.3333435 | F18: AD_CLOCK
A19: 1930 | B19: pointermove | C19: M00-H12 | D19: 786.666687 | E19: 159.3333435 | F19: AD_CLOCK
A20: 1947 | B20: pointermove | C20: M00-H12 | D20: 786 | E20: 161.3333435 | F20: AD_CLOCK
A21: 1993 | B21: pointermove | C21: M00-H12 | D21: 786 | E21: 160.6666718 | F21: AD_CLOCK
A22: 2015 | B22: pointermove | C22: M00-H12 | D22: 787.333374 | E22: 157.3333435 | F22: AD_CLOCK
A23: 2030 | B23: pointermove | C23: M00-H12 | D23: 787.333374 | E23: 154.6666718 | F23: AD_CLOCK
A24: 2047 | B24: pointermove | C24: M00-H12 | D24: 788.666687 | E24: 149.3333435 | F24: AD_CLOCK
A25: 2057 | B25: pointermove | C25: M00-H12 | D25: 789.333374 | E25: 145.3333435 | F25: AD_CLOCK
A26: 2095 | B26: pointermove | C26: M00-H12 | D26: 789.333374 | E26: 140.6666718 | F26: AD_CLOCK
A27: 2111 | B27: pointermove | C27: M00-H12 | D27: 788.666687 | E27: 140 | F27: AD_CLOCK
A28: 2129 | B28: pointermove | C28: M00-H12 | D28: 786.666687 | E28: 138.6666718 | F28: AD_CLOCK
A29: 2157 | B29: pointermove | C29: M00-H12 | D29: 782.666687 | E29: 140 | F29: AD_CLOCK
A30: 2176 | B30: pointermove | C30: M00-H12 | D30: 782 | E30: 146 | F30: AD_CLOCK
A31: 2195 | B31: pointermove | C31: M00-H12 | D31: 788.666687 | E31: 159.3333435 | F31: AD_CLOCK
A32: 2211 | B32: pointermove | C32: M00-H12 | D32: 799.333374 | E32: 170 | F32: AD_CLOCK
A33: 2231 | B33: pointermove | C33: M00-H12 | D33: 816 | E33: 172.6666718 | F33: AD_CLOCK
A34: 2247 | B34: pointermove | C34: M00-H12 | D34: 824.666687 | E34: 168 | F34: AD_CLOCK
A35: 2261 | B35: pointermove | C35: M00-H12 | D35: 830.666687 | E35: 158.6666718 | F35: AD_CLOCK
A36: 2276 | B36: pointermove | C36: M00-H12 | D36: 835.333374 | E36: 135.3333435 | F36: AD_CLOCK
A37: 2296 | B37: pointermove | C37: M00-H12 | D37: 832.666687 | E37: 118.6666718 | F37: AD_CLOCK
A38: 2312 | B38: pointermove | C38: M00-H12 | D38: 823.333374 | E38: 109.3333435 | F38: AD_CLOCK
A39: 2329 | B39: pointermove | C39: M00-H12 | D39: 814.666687 | E39: 106 | F39: AD_CLOCK
A40: 2347 | B40: pointermove | C40: M00-H12 | D40: 804.666687 | E40: 104.6666718 | F40: AD_CLOCK
A41: 2357 | B41: pointermove | C41: M00-H12 | D41: 799.333374 | E41: 105.3333435 | F41: AD_CLOCK
A42: 2376 | B42: pointermove | C42: M00-H12 | D42: 790.666687 | E42: 108.6666718 | F42: AD_CLOCK
A43: 2396 | B43: pointermove | C43: M00-H12 | D43: 784 | E43: 114.6666718 | F43: AD_CLOCK
A44: 2412 | B44: pointermove | C44: M00-H12 | D44: 782 | E44: 119.3333435 | F44: AD_CLOCK
A45: 2431 | B45: pointermove | C45: M00-H12 | D45: 782 | E45: 123.3333435 | F45: AD_CLOCK
A46: 2441 | B46: pointermove | C46: M00-H12 | D46: 784 | E46: 125.3333435 | F46: AD_CLOCK
A47: 2457 | B47: pointermove | C47: M00-H12 | D47: 789.333374 | E47: 130.6666718 | F47: AD_CLOCK
A48: 2476 | B48: pointermove | C48: M00-H12 | D48: 794.666687 | E48: 133.3333435 | F48: AD_CLOCK
A49: 2493 | B49: pointermove | C49: M00-H12 | D49: 796.666687 | E49: 133.3333435 | F49: AD_CLOCK
A50: 2507 | B50: pointermove | C50: M00-H12 | D50: 798 | E50: 133.3333435 | F50: AD_CLOCK
A51: 2519 | B51: pointermove | C51: M00-H12 | D51: 798 | E51: 132.6666718 | F51: AD_CLOCK
A52: 2547 | B52: pointermove | C52: M00-H12 | D52: 798 | E52: 131.3333435 | F52: AD_CLOCK
A53: 2556 | B53: pointermove | C53: M00-H12 | D53: 798 | E53: 130.6666718 | F53: AD_CLOCK
A54: 2565 | B54: pointermove | C54: M00-H12 | D54: 798 | E54: 130 | F54: AD_CLOCK
A55: 2593 | B55: pointermove | C55: M00-H12 | D55: 797.333374 | E55: 130 | F55: AD_CLOCK
A56: 2611 | B56: pointermove | C56: M00-H12 | D56: 796.666687 | E56: 130 | F56: AD_CLOCK
A57: 2628 | B57: pointermove | C57: M00-H12 | D57: 796 | E57: 130.6666718 | F57: AD_CLOCK
A58: 2646 | B58: pointermove | C58: M00-H12 | D58: 793.333374 | E58: 134 | F58: AD_CLOCK
A59: 2656 | B59: pointermove | C59: M00-H12 | D59: 791.333374 | E59: 138 | F59: AD_CLOCK
A60: 2676 | B60: pointermove | C60: M00-H12 | D60: 790 | E60: 142.6666718 | F60: AD_CLOCK
A61: 2696 | B61: pointermove | C61: M00-H12 | D61: 790 | E61: 146.6666718 | F61: AD_CLOCK
A62: 2711 | B62: pointermove | C62: M00-H12 | D62: 792 | E62: 149.3333435 | F62: AD_CLOCK
A63: 2728 | B63: pointermove | C63: M00-H12 | D63: 794.666687 | E63: 150 | F63: AD_CLOCK
A64: 2748 | B64: pointermove | C64: M00-H12 | D64: 800 | E64: 148 | F64: AD_CLOCK
A65: 2766 | B65: pointermove | C65: M00-H12 | D65: 804 | E65: 143.3333435 | F65: AD_CLOCK
A66: 2777 | B66: pointermove | C66: M00-H12 | D66: 806.666687 | E66: 140 | F66: AD_CLOCK
A67: 2793 | B67: pointermove | C67: M00-H12 | D67: 806.666687 | E67: 136.6666718 | F67: AD_CLOCK
A68: 2812 | B68: pointermove | C68: M00-H12 | D68: 806.666687 | E68: 135.3333435 | F68: AD_CLOCK
A69: 2829 | B69: pointermove | C69: M00-H12 | D69: 805.333374 | E69: 133.3333435 | F69: AD_CLOCK
A70: 2847 | B70: pointermove | C70: M00-H12 | D70: 802 | E70: 132.6666718 | F70: AD_CLOCK
A71: 2857 | B71: pointermove | C71: M00-H12 | D71: 800.666687 | E71: 132.6666718 | F71: AD_CLOCK
A72: 2878 | B72: pointermove | C72: M00-H12 | D72: 796.666687 | E72: 134 | F72: AD_CLOCK
A73: 2893 | B73: pointermove | C73: M00-H12 | D73: 792 | E73: 138 | F73: AD_CLOCK
A74: 2913 | B74: pointermove | C74: M00-H12 | D74: 790.666687 | E74: 142 | F74: AD_CLOCK
A75: 2928 | B75: pointermove | C75: M00-H12 | D75: 791.333374 | E75: 145.3333435 | F75: AD_CLOCK
A76: 2947 | B76: pointermove | C76: M00-H12 | D76: 795.333374 | E76: 150.6666718 | F76: AD_CLOCK
A77: 2958 | B77: pointermove | C77: M00-H12 | D77: 799.333374 | E77: 152.6666718 | F77: AD_CLOCK
A78: 2978 | B78: pointermove | C78: M00-H12 | D78: 805.333374 | E78: 153.3333435 | F78: AD_CLOCK
A79: 2993 | B79: pointermove | C79: M00-H12 | D79: 811.333374 | E79: 150.6666718 | F79: AD_CLOCK
A80: 3010 | B80: pointermove | C80: M00-H12 | D80: 813.333374 | E80: 148 | F80: AD_CLOCK
A81: 3019 | B81: pointermove | C81: M00-H12 | D81: 814 | E81: 147.3333435 | F81: AD_CLOCK
A82: 3033 | B82: pointermove | C82: M00-H12 | D82: 814 | E82: 146.6666718 | F82: AD_CLOCK
A83: 3058 | B83: pointermove | C83: M00-H12 | D83: 809.333374 | E83: 146.6666718 | F83: AD_CLOCK
A84: 3078 | B84: pointermove | C84: M00-H12 | D84: 792 | E84: 157.3333435 | F84: AD_CLOCK
A85: 3094 | B85: pointermove | C85: M00-H12 | D85: 753.333374 | E85: 185.3333435 | F85: AD_CLOCK
A86: 3113 | B86: pointermove | C86: M00-H12 | D86: 705.333374 | E86: 225.3333435 | F86: AD_CLOCK
A87: 3129 | B87: pointermove | C87: M00-H12 | D87: 656 | E87: 269.3333435 | F87: AD_CLOCK
A88: 3139 | B88: pointermove | C88: M00-H12 | D88: 617.333374 | E88: 301.3333435 | F88: AD_CLOCK
A89: 3159 | B89: pointermove | C89: M00-H12 | D89: 572 | E89: 337.3333435 | F89: AD_CLOCK
A90: 3179 | B90: pointermove | C90: M00-H12 | D90: 541.333374 | E90: 362 | F90: AD_CLOCK
A91: 3194 | B91: pointermove | C91: M00-H12 | D91: 521.333374 | E91: 371.3333435 | F91: AD_CLOCK
A92: 3214 | B92: pointermove | C92: M00-H12 | D92: 509.3333435 | E92: 374.666687 | F92: AD_CLOCK
A93: 3229 | B93: pointermove | C93: M00-H12 | D93: 501.3333435 | E93: 376 | F93: AD_CLOCK
A94: 3248 | B94: pointermove | C94: M00-H12 | D94: 490 | E94: 377.3333435 | F94: AD_CLOCK
A95: 3259 | B95: pointermove | C95: M00-H12 | D95: 484 | E95: 378 | F95: AD_CLOCK
A96: 3279 | B96: pointermove | C96: M00-H12 | D96: 476 | E96: 378.666687 | F96: AD_CLOCK
A97: 3295 | B97: pointermove | C97: M00-H12 | D97: 471.3333435 | E97: 378.666687 | F97: AD_CLOCK
A98: 3302 | B98: pointermove | C98: M00-H12 | D98: 470.666687 | E98: 378.666687 | F98: AD_CLOCK
A99: 3320 | B99: pointermove | C99: M00-H12 | D99: 470 | E99: 378 | F99: AD_CLOCK
A100: 3359 | B100: pointermove | C100: M00-H12 | D100: 466 | E100: 378.666687 | F100: AD_CLOCK
A101: 3380 | B101: pointermove | C101: M00-H12 | D101: 458.666687 | E101: 383.3333435 | F101: AD_CLOCK
A102: 3395 | B102: pointermove | C102: M00-H12 | D102: 449.3333435 | E102: 385.3333435 | F102: AD_CLOCK
A103: 3412 | B103: pointermove | C103: M00-H12 | D103: 444 | E103: 387.3333435 | F103: AD_CLOCK
A104: 3421 | B104: pointermove | C104: M00-H12 | D104: 442.666687 | E104: 387.3333435 | F104: AD_CLOCK
A105: 3439 | B105: pointermove | C105: M00-H12 | D105: 441.3333435 | E105: 387.3333435 | F105: AD_CLOCK
A106: 3460 | B106: pointermove | C106: M00-H12 | D106: 440.666687 | E106: 387.3333435 | F106: AD_CLOCK
A107: 3480 | B107: pointermove | C107: M00-H12 | D107: 436 | E107: 389.3333435 | F107: AD_CLOCK
A108: 3495 | B108: pointermove | C108: M00-H12 | D108: 429.3333435 | E108: 391.3333435 | F108: AD_CLOCK
A109: 3513 | B109: pointermove | C109: M00-H12 | D109: 423.3333435 | E109: 392.666687 | F109: AD_CLOCK
A110: 3525 | B110: pointermove | C110: M00-H12 | D110: 420 | E110: 392.666687 | F110: AD_CLOCK
A111: 3545 | B111: pointermove | C111: M00-H12 | D111: 418.666687 | E111: 392.666687 | F111: AD_CLOCK
A112: 3586 | B112: pointermove | C112: M00-H12 | D112: 418.666687 | E112: 392 | F112: AD_CLOCK
A113: 3605 | B113: pointermove | C113: M00-H12 | D113: 418.666687 | E113: 391.3333435 | F113: AD_CLOCK
A114: 3670 | B114: pointermove | C114: M00-H12 | D114: 419.3333435 | E114: 392.666687 | F114: AD_CLOCK
A115: 3691 | B115: pointermove | C115: M00-H12 | D115: 421.3333435 | E115: 393.3333435 | F115: AD_CLOCK
A116: 3751 | B116: pointerup | C116: M00-H12 | D116: 421.3333435 | E116: 393.3333435 | F116: AD_CLOCK
A117: 4523 | B117: pointerdown | C117: M30-H12 | D117: 990 | E117: 138.6666718 | F117: AD_CLOCK
A118: 4530 | B118: pointermove | C118: M30-H12 | D118: 989.333374 | E118: 138.6666718 | F118: AD_CLOCK
A119: 4567 | B119: pointermove | C119: M30-H12 | D119: 988.666687 | E119: 138.6666718 | F119: AD_CLOCK
A120: 4612 | B120: pointermove | C120: M30-H12 | D120: 988 | E120: 138.6666718 | F120: AD_CLOCK
A121: 4641 | B121: pointermove | C121: M30-H12 | D121: 986.666687 | E121: 138.6666718 | F121: AD_CLOCK
A122: 4660 | B122: pointermove | C122: M30-H12 | D122: 976.666687 | E122: 138 | F122: AD_CLOCK
A123: 4676 | B123: pointermove | C123: M30-H12 | D123: 961.333374 | E123: 136 | F123: AD_CLOCK
A124: 4695 | B124: pointermove | C124: M30-H12 | D124: 930 | E124: 134 | F124: AD_CLOCK
A125: 4712 | B125: pointermove | C125: M30-H12 | D125: 906 | E125: 132 | F125: AD_CLOCK
A126: 4730 | B126: pointermove | C126: M30-H12 | D126: 880 | E126: 130 | F126: AD_CLOCK
A127: 4740 | B127: pointermove | C127: M30-H12 | D127: 864.666687 | E127: 128 | F127: AD_CLOCK
A128: 4760 | B128: pointermove | C128: M30-H12 | D128: 843.333374 | E128: 128 | F128: AD_CLOCK
A129: 4776 | B129: pointermove | C129: M30-H12 | D129: 830 | E129: 128 | F129: AD_CLOCK
A130: 4795 | B130: pointermove | C130: M30-H12 | D130: 818.666687 | E130: 126 | F130: AD_CLOCK
A131: 4812 | B131: pointermove | C131: M30-H12 | D131: 816 | E131: 125.3333435 | F131: AD_CLOCK
A132: 4830 | B132: pointermove | C132: M30-H12 | D132: 816 | E132: 123.3333435 | F132: AD_CLOCK
A133: 4931 | B133: pointermove | C133: M30-H12 | D133: 816.666687 | E133: 123.3333435 | F133: AD_CLOCK
A134: 4949 | B134: pointermove | C134: M30-H12 | D134: 816.666687 | E134: 124.6666718 | F134: AD_CLOCK
A135: 4976 | B135: pointermove | C135: M30-H12 | D135: 817.333374 | E135: 125.3333435 | F135: AD_CLOCK
A136: 4995 | B136: pointermove | C136: M30-H12 | D136: 818 | E136: 126 | F136: AD_CLOCK
A137: 5013 | B137: pointermove | C137: M30-H12 | D137: 819.333374 | E137: 126.6666718 | F137: AD_CLOCK
A138: 5026 | B138: pointermove | C138: M30-H12 | D138: 820 | E138: 127.3333435 | F138: AD_CLOCK
A139: 5061 | B139: pointermove | C139: M30-H12 | D139: 821.333374 | E139: 127.3333435 | F139: AD_CLOCK
A140: 5095 | B140: pointermove | C140: M30-H12 | D140: 822.666687 | E140: 128 | F140: AD_CLOCK
A141: 5106 | B141: pointermove | C141: M30-H12 | D141: 823.333374 | E141: 128 | F141: AD_CLOCK
A142: 5122 | B142: pointermove | C142: M30-H12 | D142: 824 | E142: 128 | F142: AD_CLOCK
A143: 5159 | B143: pointermove | C143: M30-H12 | D143: 824.666687 | E143: 128 | F143: AD_CLOCK
A144: 5186 | B144: pointermove | C144: M30-H12 | D144: 825.333374 | E144: 128 | F144: AD_CLOCK
A145: 5232 | B145: pointermove | C145: M30-H12 | D145: 826 | E145: 128 | F145: AD_CLOCK
A146: 5379 | B146: pointermove | C146: M30-H12 | D146: 826.666687 | E146: 128 | F146: AD_CLOCK
A147: 5452 | B147: pointermove | C147: M30-H12 | D147: 827.333374 | E147: 128 | F147: AD_CLOCK
A148: 5506 | B148: pointermove | C148: M30-H12 | D148: 828 | E148: 128 | F148: AD_CLOCK
A149: 5552 | B149: pointermove | C149: M30-H12 | D149: 828.666687 | E149: 128 | F149: AD_CLOCK
A150: 6229 | B150: pointermove | C150: M30-H12 | D150: 828.666687 | E150: 128 | F150: AD_CLOCK
A151: 6413 | B151: pointermove | C151: M30-H12 | D151: 828.666687 | E151: 128 | F151: AD_CLOCK
A152: 13967 | B152: pointermove | C152: M30-H12 | D152: 829.333374 | E152: 128 | F152: AD_CLOCK
A153: 14022 | B153: pointermove | C153: M30-H12 | D153: 830 | E153: 128 | F153: AD_CLOCK
A154: 14040 | B154: pointermove | C154: M30-H12 | D154: 830.666687 | E154: 128 | F154: AD_CLOCK
A155: 14067 | B155: pointermove | C155: M30-H12 | D155: 831.333374 | E155: 128 | F155: AD_CLOCK
A156: 14085 | B156: pointermove | C156: M30-H12 | D156: 832 | E156: 128 | F156: AD_CLOCK
A157: 15157 | B157: pointermove | C157: M30-H12 | D157: 833.333374 | E157: 128 | F157: AD_CLOCK
A158: 15194 | B158: pointermove | C158: M30-H12 | D158: 834 | E158: 128 | F158: AD_CLOCK
A159: 15214 | B159: pointermove | C159: M30-H12 | D159: 834.666687 | E159: 128 | F159: AD_CLOCK
A160: 15248 | B160: pointermove | C160: M30-H12 | D160: 835.333374 | E160: 128 | F160: AD_CLOCK
A161: 15266 | B161: pointermove | C161: M30-H12 | D161: 836 | E161: 128 | F161: AD_CLOCK
A162: 15311 | B162: pointermove | C162: M30-H12 | D162: 836.666687 | E162: 128.6666718 | F162: AD_CLOCK
A163: 15329 | B163: pointermove | C163: M30-H12 | D163: 838 | E163: 128.6666718 | F163: AD_CLOCK
A164: 15367 | B164: pointermove | C164: M30-H12 | D164: 838.666687 | E164: 128.6666718 | F164: AD_CLOCK
A165: 15384 | B165: pointermove | C165: M30-H12 | D165: 839.333374 | E165: 128.6666718 | F165: AD_CLOCK
A166: 15676 | B166: pointermove | C166: M30-H12 | D166: 840 | E166: 128.6666718 | F166: AD_CLOCK
A167: 16725 | B167: pointermove | C167: M30-H12 | D167: 840 | E167: 128.6666718 | F167: AD_CLOCK
A168: 16942 | B168: pointermove | C168: M30-H12 | D168: 840 | E168: 128.6666718 | F168: AD_CLOCK
A169: 18903 | B169: pointermove | C169: M30-H12 | D169: 839.333374 | E169: 128.6666718 | F169: AD_CLOCK
A170: 18919 | B170: pointermove | C170: M30-H12 | D170: 838 | E170: 128.6666718 | F170: AD_CLOCK
A171: 18938 | B171: pointermove | C171: M30-H12 | D171: 835.333374 | E171: 128.6666718 | F171: AD_CLOCK
A172: 18958 | B172: pointermove | C172: M30-H12 | D172: 824 | E172: 128.6666718 | F172: AD_CLOCK
A173: 18973 | B173: pointermove | C173: M30-H12 | D173: 800 | E173: 130.6666718 | F173: AD_CLOCK
A174: 18984 | B174: pointermove | C174: M30-H12 | D174: 771.333374 | E174: 133.3333435 | F174: AD_CLOCK
A175: 19003 | B175: pointermove | C175: M30-H12 | D175: 720 | E175: 135.3333435 | F175: AD_CLOCK
A176: 19023 | B176: pointermove | C176: M30-H12 | D176: 672 | E176: 136 | F176: AD_CLOCK
A177: 19039 | B177: pointermove | C177: M30-H12 | D177: 640 | E177: 136 | F177: AD_CLOCK
A178: 19058 | B178: pointermove | C178: M30-H12 | D178: 624.666687 | E178: 136.6666718 | F178: AD_CLOCK
A179: 19074 | B179: pointermove | C179: M30-H12 | D179: 620 | E179: 136.6666718 | F179: AD_CLOCK
A180: 19078 | B180: pointermove | C180: M30-H12 | D180: 619.333374 | E180: 136.6666718 | F180: AD_CLOCK
A181: 19241 | B181: pointermove | C181: M30-H12 | D181: 618.666687 | E181: 136.6666718 | F181: AD_CLOCK
A182: 19258 | B182: pointermove | C182: M30-H12 | D182: 613.333374 | E182: 137.3333435 | F182: AD_CLOCK
A183: 19269 | B183: pointermove | C183: M30-H12 | D183: 598.666687 | E183: 141.3333435 | F183: AD_CLOCK
A184: 19290 | B184: pointermove | C184: M30-H12 | D184: 570 | E184: 146.6666718 | F184: AD_CLOCK
A185: 19324 | B185: pointermove | C185: M30-H12 | D185: 523.333374 | E185: 157.3333435 | F185: AD_CLOCK
A186: 19341 | B186: pointermove | C186: M30-H12 | D186: 507.3333435 | E186: 165.3333435 | F186: AD_CLOCK
A187: 19358 | B187: pointermove | C187: M30-H12 | D187: 494 | E187: 174 | F187: AD_CLOCK
A188: 19369 | B188: pointermove | C188: M30-H12 | D188: 488 | E188: 178 | F188: AD_CLOCK
A189: 19390 | B189: pointermove | C189: M30-H12 | D189: 482 | E189: 184 | F189: AD_CLOCK
A190: 19405 | B190: pointermove | C190: M30-H12 | D190: 476 | E190: 188 | F190: AD_CLOCK
A191: 19422 | B191: pointermove | C191: M30-H12 | D191: 470.666687 | E191: 192.666687 | F191: AD_CLOCK
A192: 19441 | B192: pointermove | C192: M30-H12 | D192: 462.666687 | E192: 198.666687 | F192: AD_CLOCK
A193: 19458 | B193: pointermove | C193: M30-H12 | D193: 456 | E193: 202 | F193: AD_CLOCK
A194: 19469 | B194: pointermove | C194: M30-H12 | D194: 451.3333435 | E194: 206 | F194: AD_CLOCK
A195: 19490 | B195: pointermove | C195: M30-H12 | D195: 443.3333435 | E195: 209.3333435 | F195: AD_CLOCK
A196: 19505 | B196: pointermove | C196: M30-H12 | D196: 436.666687 | E196: 213.3333435 | F196: AD_CLOCK
A197: 19522 | B197: pointermove | C197: M30-H12 | D197: 430.666687 | E197: 215.3333435 | F197: AD_CLOCK
A198: 19540 | B198: pointermove | C198: M30-H12 | D198: 427.3333435 | E198: 217.3333435 | F198: AD_CLOCK
A199: 19551 | B199: pointermove | C199: M30-H12 | D199: 425.3333435 | E199: 217.3333435 | F199: AD_CLOCK
A200: 19586 | B200: pointermove | C200: M30-H12 | D200: 424 | E200: 217.3333435 | F200: AD_CLOCK
A201: 19606 | B201: pointermove | C201: M30-H12 | D201: 421.3333435 | E201: 218 | F201: AD_CLOCK
... 535 more rows

Sheet view
A1: fókusz | B1: súlyfürdő
A3: Mennyiség / ÉRTÉK | B3: Oszlopcímkék
A4: Sorcímkék | B4: csontsűrűség | C4: diagnózis | D4: felfüggsztési pontok száma | E4: izomerő-nagyság | F4: kiindulási súly | G4: kor | H4: mozgásképesség | I4: Végösszeg
A5: 1 | B5: 1 | C5: 1 | D5: 1 | E5: 1 | F5: 1 | G5: 1 | H5: 1 | I5: 7
A6: 2 | B6: 1 | C6: 1 | D6: 1 | E6: 1 | F6: 1 | G6: 1 | H6: 1 | I6: 7
A7: 3 | B7: 1 | C7: 1 | D7: 1 | E7: 1 | F7: 1 | G7: 1 | H7: 1 | I7: 7
A8: 4 | B8: 1 | C8: 1 | D8: 1 | E8: 1 | F8: 1 | G8: 1 | H8: 1 | I8: 7
A9: 5 | B9: 1 | C9: 1 | D9: 1 | E9: 1 | F9: 1 | G9: 1 | H9: 1 | I9: 7
A10: 6 | B10: 1 | C10: 1 | D10: 1 | E10: 1 | F10: 1 | G10: 1 | H10: 1 | I10: 7
A11: 7 | B11: 1 | C11: 1 | D11: 1 | E11: 1 | F11: 1 | G11: 1 | H11: 1 | I11: 7
A12: 8 | B12: 1 | C12: 1 | D12: 1 | E12: 1 | F12: 1 | G12: 1 | H12: 1 | I12: 7
A13: 9 | B13: 1 | C13: 1 | D13: 1 | E13: 1 | F13: 1 | G13: 1 | H13: 1 | I13: 7
A14: 10 | B14: 1 | C14: 1 | D14: 1 | E14: 1 | F14: 1 | G14: 1 | H14: 1 | I14: 7
A15: 11 | B15: 1 | C15: 1 | D15: 1 | E15: 1 | F15: 1 | G15: 1 | H15: 1 | I15: 7
A16: 12 | B16: 1 | C16: 1 | D16: 1 | E16: 1 | F16: 1 | G16: 1 | H16: 1 | I16: 7
A17: 13 | B17: 1 | C17: 1 | D17: 1 | E17: 1 | F17: 1 | G17: 1 | H17: 1 | I17: 7
A18: 14 | B18: 1 | C18: 1 | D18: 1 | E18: 1 | F18: 1 | G18: 1 | H18: 1 | I18: 7
A19: Végösszeg | B19: 14 | C19: 14 | D19: 14 | E19: 14 | F19: 14 | G19: 14 | H19: 14 | I19: 98
A22: fókusz | B22: súlyfürdő
A24: Átlag / ÉRTÉK | B24: Oszlopcímkék
A25: Sorcímkék | B25: csontsűrűség | C25: diagnózis | D25: felfüggsztési pontok száma | E25: izomerő-nagyság | F25: kiindulási súly | G25: kor | H25: mozgásképesség | L25: =B25 -> csontsűrűség | M25: =C25 -> diagnózis | N25: =D25 -> felfüggsztési pontok száma | O25: =E25 -> izomerő-nagyság | P25: =F25 -> kiindulási súly | Q25: =G25 -> kor | R25: =H25 -> mozgásképesség | U25: =L25 -> csontsűrűség | V25: =Q25 -> kor | X25: =M25 -> diagnózis | Y25: =P25 -> kiindulási súly | Z25: =N25 -> felfüggsztési pontok száma
A26: 1 | B26: -3 | C26: 3 | D26: 1 | E26: 3 | F26: 3 | G26: 60 | H26: 1 | K26: =A26 -> 1 | L26: -3 | M26: 3 | N26: 1 | O26: 3 | P26: 3 | Q26: 60 | R26: 1 | U26: =L26 -> -3 | V26: =Q26 -> 60 | X26: =M26 -> 3 | Y26: =P26 -> 3 | Z26: =N26 -> 1
A27: 2 | B27: -4 | C27: 2 | D27: 2 | E27: 1 | F27: 0 | G27: 60 | H27: 3 | K27: 2 | L27: -4 | M27: 2 | N27: 2 | O27: 1 | P27: 0 | Q27: 60 | R27: 3 | U27: -4 | V27: 60 | X27: 2 | Y27: 0 | Z27: 2
A28: 3 | B28: -2 | C28: 3 | D28: 2 | E28: 3 | F28: 0 | G28: 50 | H28: 3 | K28: 3 | L28: -2 | M28: 3 | N28: 2 | O28: 3 | P28: 0 | Q28: 50 | R28: 3 | U28: -2 | V28: 50 | X28: 3 | Y28: 0 | Z28: 2
A29: 4 | B29: -3 | C29: 2 | D29: 1 | E29: 3 | F29: 3 | G29: 50 | H29: 1 | K29: 4 | L29: -3 | M29: 2 | N29: 1 | O29: 3 | P29: 3 | Q29: 50 | R29: 1 | U29: -3 | V29: 50 | X29: 2 | Y29: 3 | Z29: 1
A30: 5 | B30: -2 | C30: 4 | D30: 3 | E30: 5 | F30: 0 | G30: 60 | H30: 3 | K30: 5 | L30: -2 | M30: 4 | N30: 3 | O30: 5 | P30: 0 | Q30: 60 | R30: 3 | U30: -2 | V30: 60 | X30: 4 | Y30: 0 | Z30: 3
A31: 6 | B31: -3 | C31: 1 | D31: 3 | E31: 1 | F31: 3 | G31: 50 | H31: 1 | K31: 6 | L31: -3 | M31: 1 | N31: 3 | O31: 1 | P31: 3 | Q31: 50 | R31: 1 | U31: -3 | V31: 50 | X31: 1 | Y31: 3 | Z31: 3
A32: 7 | B32: -3 | C32: 1 | D32: 1 | E32: 3 | F32: 3 | G32: 60 | H32: 2 | K32: 7 | L32: -3 | M32: 1 | N32: 1 | O32: 3 | P32: 3 | Q32: 60 | R32: 2 | U32: -3 | V32: 60 | X32: 1 | Y32: 3 | Z32: 1
A33: 8 | B33: -2 | C33: 2 | D33: 3 | E33: 1 | F33: 0 | G33: 60 | H33: 1 | K33: 8 | L33: -2 | M33: 2 | N33: 3 | O33: 1 | P33: 0 | Q33: 60 | R33: 1 | U33: -2 | V33: 60 | X33: 2 | Y33: 0 | Z33: 3
A34: 9 | B34: 0 | C34: 1 | D34: 3 | E34: 1 | F34: 3 | G34: 60 | H34: 2 | K34: 9 | L34: 0 | M34: 1 | N34: 3 | O34: 1 | P34: 3 | Q34: 60 | R34: 2 | U34: 0 | V34: 60 | X34: 1 | Y34: 3 | Z34: 3
A35: 10 | B35: -4 | C35: 1 | D35: 2 | E35: 3 | F35: 0 | G35: 50 | H35: 2 | K35: 10 | L35: -4 | M35: 1 | N35: 2 | O35: 3 | P35: 0 | Q35: 50 | R35: 2 | U35: -4 | V35: 50 | X35: 1 | Y35: 0 | Z35: 2
A36: 11 | B36: 0 | C36: 4 | D36: 2 | E36: 5 | F36: 3 | G36: 50 | H36: 1 | K36: 11 | L36: 0 | M36: 4 | N36: 2 | O36: 5 | P36: 3 | Q36: 50 | R36: 1 | U36: 0 | V36: 50 | X36: 4 | Y36: 3 | Z36: 2
A37: 12 | B37: -4 | C37: 4 | D37: 1 | E37: 4 | F37: 3 | G37: 70 | H37: 1 | K37: 12 | L37: -4 | M37: 4 | N37: 1 | O37: 4 | P37: 3 | Q37: 70 | R37: 1 | U37: -4 | V37: 70 | X37: 4 | Y37: 3 | Z37: 1
A38: 13 | B38: -1 | C38: 3 | D38: 3 | E38: 3 | F38: 0 | G38: 70 | H38: 3 | K38: 13 | L38: -1 | M38: 3 | N38: 3 | O38: 3 | P38: 0 | Q38: 70 | R38: 3 | U38: -1 | V38: 70 | X38: 3 | Y38: 0 | Z38: 3
A39: 14 | B39: -3 | C39: 1 | D39: 1 | E39: 1 | F39: 3 | G39: 70 | H39: 2 | K39: 14 | L39: -3 | M39: 1 | N39: 1 | O39: 1 | P39: 3 | Q39: 70 | R39: 2 | U39: -3 | V39: 70 | X39: 1 | Y39: 3 | Z39: 1
A40: Végösszeg | B40: -2.428571429 | C40: 2.285714286 | D40: 2 | E40: 2.642857143 | F40: 1.714285714 | G40: 58.57142857 | H40: 1.857142857

Sheet pivot
F1: a=nem lehet 0-nál nagyobb súllyal kezdeni, B=csak 2 pontos lehet, C=nem érdemes kis súllyal kezdni, D=ellenjavalt
A2: sorszám | B2: objektum/páciens | C2: fókusz | D2: attribútum | E2: ÉRTÉK | F2: mértékegység | G2: forrás | H2: dátum | I2: rögzítette | L2: ÉRTÉK
A3: 1 | B3: 1 | C3: súlyfürdő | D3: mozgásképesség | E3: 1 | F3: index:1<3 | G3: betegkarton | H3: 20191120 | I3: pl | L3: =RANDBETWEEN(1,3) -> 2
A4: 2 | B4: 1 | C4: súlyfürdő | D4: izomerő-nagyság | E4: 3 | F4: index:1<5 | G4: betegkarton | H4: 20191120 | I4: pl | L4: =RANDBETWEEN(1,5) -> 1
A5: 3 | B5: 1 | C5: súlyfürdő | D5: kor | E5: 60 | F5: év | G5: betegkarton | H5: 20191120 | I5: pl | L5: =IF(RAND()<0.33,50,IF(RAND()<0.66,60,70)) -> 60
A6: 4 | B6: 1 | C6: súlyfürdő | D6: csontsűrűség | E6: -3 | F6: dexa | G6: betegkarton | H6: 20191120 | I6: pl | L6: =RANDBETWEEN(-4,0) -> -4
A7: 5 | B7: 1 | C7: súlyfürdő | D7: diagnózis | E7: 3 | F7: a-b-c-d | G7: betegkarton | H7: 20191120 | I7: pl | L7: =RANDBETWEEN(1,4) -> 3
A8: 6 | B8: 1 | C8: súlyfürdő | D8: felfüggsztési pontok száma | E8: 1 | F8: 1--2--3 db | G8: betegkarton | H8: 20191120 | I8: pl | L8: =RANDBETWEEN(1,3) -> 2
A9: 7 | B9: 1 | C9: súlyfürdő | D9: kiindulási súly | E9: 3 | F9: kg | G9: betegkarton | H9: 20191120 | I9: pl | L9: =IF(RAND()<0.5,0,3) -> 0
A10: 8 | B10: =B3+1 -> 2 | C10: súlyfürdő | D10: =D3 -> mozgásképesség | E10: 3 | F10: =F3 -> index:1<3 | G10: betegkarton | H10: 20191120 | I10: pl | L10: =RANDBETWEEN(1,3) -> 1
A11: 9 | B11: =B4+1 -> 2 | C11: súlyfürdő | D11: =D4 -> izomerő-nagyság | E11: 1 | F11: index:1<5 | G11: betegkarton | H11: 20191120 | I11: pl | L11: =RANDBETWEEN(1,5) -> 1
A12: 10 | B12: 2 | C12: súlyfürdő | D12: kor | E12: 60 | F12: év | G12: betegkarton | H12: 20191120 | I12: pl | L12: =IF(RAND()<0.33,50,IF(RAND()<0.66,60,70)) -> 70
A13: 11 | B13: 2 | C13: súlyfürdő | D13: csontsűrűség | E13: -4 | F13: dexa | G13: betegkarton | H13: 20191120 | I13: pl | L13: =RANDBETWEEN(-4,0) -> -1
A14: 12 | B14: 2 | C14: súlyfürdő | D14: diagnózis | E14: 2 | F14: a-b-c-d | G14: betegkarton | H14: 20191120 | I14: pl | L14: =RANDBETWEEN(1,4) -> 4
A15: 13 | B15: 2 | C15: súlyfürdő | D15: felfüggsztési pontok száma | E15: 2 | F15: 1--2--3 db | G15: betegkarton | H15: 20191120 | I15: pl | L15: =RANDBETWEEN(1,3) -> 1
A16: 14 | B16: 2 | C16: súlyfürdő | D16: kiindulási súly | E16: 0 | F16: kg | G16: betegkarton | H16: 20191120 | I16: pl | L16: =IF(RAND()<0.5,0,3) -> 0
A17: 15 | B17: 3 | C17: súlyfürdő | D17: mozgásképesség | E17: 3 | F17: index:1<3 | G17: betegkarton | H17: 20191120 | I17: pl | L17: =RANDBETWEEN(1,3) -> 1
A18: 16 | B18: 3 | C18: súlyfürdő | D18: izomerő-nagyság | E18: 3 | F18: index:1<5 | G18: betegkarton | H18: 20191120 | I18: pl | L18: =RANDBETWEEN(1,5) -> 3
A19: 17 | B19: 3 | C19: súlyfürdő | D19: kor | E19: 50 | F19: év | G19: betegkarton | H19: 20191120 | I19: pl | L19: =IF(RAND()<0.33,50,IF(RAND()<0.66,60,70)) -> 60
A20: 18 | B20: 3 | C20: súlyfürdő | D20: csontsűrűség | E20: -2 | F20: dexa | G20: betegkarton | H20: 20191120 | I20: pl | L20: =RANDBETWEEN(-4,0) -> 0
A21: 19 | B21: 3 | C21: súlyfürdő | D21: diagnózis | E21: 3 | F21: a-b-c-d | G21: betegkarton | H21: 20191120 | I21: pl | L21: =RANDBETWEEN(1,4) -> 2
A22: 20 | B22: 3 | C22: súlyfürdő | D22: felfüggsztési pontok száma | E22: 2 | F22: 1--2--3 db | G22: betegkarton | H22: 20191120 | I22: pl | L22: =RANDBETWEEN(1,3) -> 1
A23: 21 | B23: 3 | C23: súlyfürdő | D23: kiindulási súly | E23: 0 | F23: kg | G23: betegkarton | H23: 20191120 | I23: pl | L23: =IF(RAND()<0.5,0,3) -> 0
A24: 22 | B24: 4 | C24: súlyfürdő | D24: mozgásképesség | E24: 1 | F24: index:1<3 | G24: betegkarton | H24: 20191120 | I24: pl | L24: =RANDBETWEEN(1,3) -> 1
A25: 23 | B25: 4 | C25: súlyfürdő | D25: izomerő-nagyság | E25: 3 | F25: index:1<5 | G25: betegkarton | H25: 20191120 | I25: pl | L25: =RANDBETWEEN(1,5) -> 4
A26: 24 | B26: 4 | C26: súlyfürdő | D26: kor | E26: 50 | F26: év | G26: betegkarton | H26: 20191120 | I26: pl | L26: =IF(RAND()<0.33,50,IF(RAND()<0.66,60,70)) -> 70
A27: 25 | B27: 4 | C27: súlyfürdő | D27: csontsűrűség | E27: -3 | F27: dexa | G27: betegkarton | H27: 20191120 | I27: pl | L27: =RANDBETWEEN(-4,0) -> -2
A28: 26 | B28: 4 | C28: súlyfürdő | D28: diagnózis | E28: 2 | F28: a-b-c-d | G28: betegkarton | H28: 20191120 | I28: pl | L28: =RANDBETWEEN(1,4) -> 3
A29: 27 | B29: 4 | C29: súlyfürdő | D29: felfüggsztési pontok száma | E29: 1 | F29: 1--2--3 db | G29: betegkarton | H29: 20191120 | I29: pl | L29: =RANDBETWEEN(1,3) -> 3
A30: 28 | B30: 4 | C30: súlyfürdő | D30: kiindulási súly | E30: 3 | F30: kg | G30: betegkarton | H30: 20191120 | I30: pl | L30: =IF(RAND()<0.5,0,3) -> 0
A31: 29 | B31: 5 | C31: súlyfürdő | D31: mozgásképesség | E31: 3 | F31: index:1<3 | G31: betegkarton | H31: 20191120 | I31: pl | L31: =RANDBETWEEN(1,3) -> 3
A32: 30 | B32: 5 | C32: súlyfürdő | D32: izomerő-nagyság | E32: 5 | F32: index:1<5 | G32: betegkarton | H32: 20191120 | I32: pl | L32: =RANDBETWEEN(1,5) -> 4
A33: 31 | B33: 5 | C33: súlyfürdő | D33: kor | E33: 60 | F33: év | G33: betegkarton | H33: 20191120 | I33: pl | L33: =IF(RAND()<0.33,50,IF(RAND()<0.66,60,70)) -> 50
A34: 32 | B34: 5 | C34: súlyfürdő | D34: csontsűrűség | E34: -2 | F34: dexa | G34: betegkarton | H34: 20191120 | I34: pl | L34: =RANDBETWEEN(-4,0) -> 0
A35: 33 | B35: 5 | C35: súlyfürdő | D35: diagnózis | E35: 4 | F35: a-b-c-d | G35: betegkarton | H35: 20191120 | I35: pl | L35: =RANDBETWEEN(1,4) -> 4
A36: 34 | B36: 5 | C36: súlyfürdő | D36: felfüggsztési pontok száma | E36: 3 | F36: 1--2--3 db | G36: betegkarton | H36: 20191120 | I36: pl | L36: =RANDBETWEEN(1,3) -> 2
A37: 35 | B37: 5 | C37: súlyfürdő | D37: kiindulási súly | E37: 0 | F37: kg | G37: betegkarton | H37: 20191120 | I37: pl | L37: =IF(RAND()<0.5,0,3) -> 3
A38: 36 | B38: 6 | C38: súlyfürdő | D38: mozgásképesség | E38: 1 | F38: index:1<3 | G38: betegkarton | H38: 20191120 | I38: pl | L38: =RANDBETWEEN(1,3) -> 1
A39: 37 | B39: 6 | C39: súlyfürdő | D39: izomerő-nagyság | E39: 1 | F39: index:1<5 | G39: betegkarton | H39: 20191120 | I39: pl | L39: =RANDBETWEEN(1,5) -> 5
A40: 38 | B40: 6 | C40: súlyfürdő | D40: kor | E40: 50 | F40: év | G40: betegkarton | H40: 20191120 | I40: pl | L40: =IF(RAND()<0.33,50,IF(RAND()<0.66,60,70)) -> 70
A41: 39 | B41: 6 | C41: súlyfürdő | D41: csontsűrűség | E41: -3 | F41: dexa | G41: betegkarton | H41: 20191120 | I41: pl | L41: =RANDBETWEEN(-4,0) -> 0
A42: 40 | B42: 6 | C42: súlyfürdő | D42: diagnózis | E42: 1 | F42: a-b-c-d | G42: betegkarton | H42: 20191120 | I42: pl | L42: =RANDBETWEEN(1,4) -> 1
A43: 41 | B43: 6 | C43: súlyfürdő | D43: felfüggsztési pontok száma | E43: 3 | F43: 1--2--3 db | G43: betegkarton | H43: 20191120 | I43: pl | L43: =RANDBETWEEN(1,3) -> 1
A44: 42 | B44: 6 | C44: súlyfürdő | D44: kiindulási súly | E44: 3 | F44: kg | G44: betegkarton | H44: 20191120 | I44: pl | L44: =IF(RAND()<0.5,0,3) -> 0
A45: 43 | B45: 7 | C45: súlyfürdő | D45: mozgásképesség | E45: 2 | F45: index:1<3 | G45: betegkarton | H45: 20191120 | I45: pl | L45: =RANDBETWEEN(1,3) -> 1
A46: 44 | B46: 7 | C46: súlyfürdő | D46: izomerő-nagyság | E46: 3 | F46: index:1<5 | G46: betegkarton | H46: 20191120 | I46: pl | L46: =RANDBETWEEN(1,5) -> 2
A47: 45 | B47: 7 | C47: súlyfürdő | D47: kor | E47: 60 | F47: év | G47: betegkarton | H47: 20191120 | I47: pl | L47: =IF(RAND()<0.33,50,IF(RAND()<0.66,60,70)) -> 60
A48: 46 | B48: 7 | C48: súlyfürdő | D48: csontsűrűség | E48: -3 | F48: dexa | G48: betegkarton | H48: 20191120 | I48: pl | L48: =RANDBETWEEN(-4,0) -> -4
A49: 47 | B49: 7 | C49: súlyfürdő | D49: diagnózis | E49: 1 | F49: a-b-c-d | G49: betegkarton | H49: 20191120 | I49: pl | L49: =RANDBETWEEN(1,4) -> 3
A50: 48 | B50: 7 | C50: súlyfürdő | D50: felfüggsztési pontok száma | E50: 1 | F50: 1--2--3 db | G50: betegkarton | H50: 20191120 | I50: pl | L50: =RANDBETWEEN(1,3) -> 3
A51: 49 | B51: 7 | C51: súlyfürdő | D51: kiindulási súly | E51: 3 | F51: kg | G51: betegkarton | H51: 20191120 | I51: pl | L51: =IF(RAND()<0.5,0,3) -> 0
A52: 50 | B52: 8 | C52: súlyfürdő | D52: mozgásképesség | E52: 1 | F52: index:1<3 | G52: betegkarton | H52: 20191120 | I52: pl | L52: =RANDBETWEEN(1,3) -> 1
A53: 51 | B53: 8 | C53: súlyfürdő | D53: izomerő-nagyság | E53: 1 | F53: index:1<5 | G53: betegkarton | H53: 20191120 | I53: pl | L53: =RANDBETWEEN(1,5) -> 4
A54: 52 | B54: 8 | C54: súlyfürdő | D54: kor | E54: 60 | F54: év | G54: betegkarton | H54: 20191120 | I54: pl | L54: =IF(RAND()<0.33,50,IF(RAND()<0.66,60,70)) -> 70
A55: 53 | B55: 8 | C55: súlyfürdő | D55: csontsűrűség | E55: -2 | F55: dexa | G55: betegkarton | H55: 20191120 | I55: pl | L55: =RANDBETWEEN(-4,0) -> -3
A56: 54 | B56: 8 | C56: súlyfürdő | D56: diagnózis | E56: 2 | F56: a-b-c-d | G56: betegkarton | H56: 20191120 | I56: pl | L56: =RANDBETWEEN(1,4) -> 2
A57: 55 | B57: 8 | C57: súlyfürdő | D57: felfüggsztési pontok száma | E57: 3 | F57: 1--2--3 db | G57: betegkarton | H57: 20191120 | I57: pl | L57: =RANDBETWEEN(1,3) -> 2
A58: 56 | B58: 8 | C58: súlyfürdő | D58: kiindulási súly | E58: 0 | F58: kg | G58: betegkarton | H58: 20191120 | I58: pl | L58: =IF(RAND()<0.5,0,3) -> 0
A59: 57 | B59: 9 | C59: súlyfürdő | D59: mozgásképesség | E59: 2 | F59: index:1<3 | G59: betegkarton | H59: 20191120 | I59: pl | L59: =RANDBETWEEN(1,3) -> 2
A60: 58 | B60: 9 | C60: súlyfürdő | D60: izomerő-nagyság | E60: 1 | F60: index:1<5 | G60: betegkarton | H60: 20191120 | I60: pl | L60: =RANDBETWEEN(1,5) -> 3
A61: 59 | B61: 9 | C61: súlyfürdő | D61: kor | E61: 60 | F61: év | G61: betegkarton | H61: 20191120 | I61: pl | L61: =IF(RAND()<0.33,50,IF(RAND()<0.66,60,70)) -> 60
A62: 60 | B62: 9 | C62: súlyfürdő | D62: csontsűrűség | E62: 0 | F62: dexa | G62: betegkarton | H62: 20191120 | I62: pl | L62: =RANDBETWEEN(-4,0) -> -4
A63: 61 | B63: 9 | C63: súlyfürdő | D63: diagnózis | E63: 1 | F63: a-b-c-d | G63: betegkarton | H63: 20191120 | I63: pl | L63: =RANDBETWEEN(1,4) -> 4
A64: 62 | B64: 9 | C64: súlyfürdő | D64: felfüggsztési pontok száma | E64: 3 | F64: 1--2--3 db | G64: betegkarton | H64: 20191120 | I64: pl | L64: =RANDBETWEEN(1,3) -> 2
A65: 63 | B65: 9 | C65: súlyfürdő | D65: kiindulási súly | E65: 3 | F65: kg | G65: betegkarton | H65: 20191120 | I65: pl | L65: =IF(RAND()<0.5,0,3) -> 0
A66: 64 | B66: 10 | C66: súlyfürdő | D66: mozgásképesség | E66: 2 | F66: index:1<3 | G66: betegkarton | H66: 20191120 | I66: pl | L66: =RANDBETWEEN(1,3) -> 2
A67: 65 | B67: 10 | C67: súlyfürdő | D67: izomerő-nagyság | E67: 3 | F67: index:1<5 | G67: betegkarton | H67: 20191120 | I67: pl | L67: =RANDBETWEEN(1,5) -> 2
A68: 66 | B68: 10 | C68: súlyfürdő | D68: kor | E68: 50 | F68: év | G68: betegkarton | H68: 20191120 | I68: pl | L68: =IF(RAND()<0.33,50,IF(RAND()<0.66,60,70)) -> 60
A69: 67 | B69: 10 | C69: súlyfürdő | D69: csontsűrűség | E69: -4 | F69: dexa | G69: betegkarton | H69: 20191120 | I69: pl | L69: =RANDBETWEEN(-4,0) -> -4
A70: 68 | B70: 10 | C70: súlyfürdő | D70: diagnózis | E70: 1 | F70: a-b-c-d | G70: betegkarton | H70: 20191120 | I70: pl | L70: =RANDBETWEEN(1,4) -> 1
A71: 69 | B71: 10 | C71: súlyfürdő | D71: felfüggsztési pontok száma | E71: 2 | F71: 1--2--3 db | G71: betegkarton | H71: 20191120 | I71: pl | L71: =RANDBETWEEN(1,3) -> 3
A72: 70 | B72: 10 | C72: súlyfürdő | D72: kiindulási súly | E72: 0 | F72: kg | G72: betegkarton | H72: 20191120 | I72: pl | L72: =IF(RAND()<0.5,0,3) -> 3
A73: 71 | B73: 11 | C73: súlyfürdő | D73: mozgásképesség | E73: 1 | F73: index:1<3 | G73: betegkarton | H73: 20191120 | I73: pl | L73: =RANDBETWEEN(1,3) -> 1
A74: 72 | B74: 11 | C74: súlyfürdő | D74: izomerő-nagyság | E74: 5 | F74: index:1<5 | G74: betegkarton | H74: 20191120 | I74: pl | L74: =RANDBETWEEN(1,5) -> 3
A75: 73 | B75: =B68+1 -> 11 | C75: súlyfürdő | D75: =D68 -> kor | E75: 50 | F75: év | G75: betegkarton | H75: 20191120 | I75: pl | L75: =IF(RAND()<0.33,50,IF(RAND()<0.66,60,70)) -> 50
A76: 74 | B76: 11 | C76: súlyfürdő | D76: csontsűrűség | E76: 0 | F76: dexa | G76: betegkarton | H76: 20191120 | I76: pl | L76: =RANDBETWEEN(-4,0) -> -3
A77: 75 | B77: 11 | C77: súlyfürdő | D77: diagnózis | E77: 4 | F77: a-b-c-d | G77: betegkarton | H77: 20191120 | I77: pl | L77: =RANDBETWEEN(1,4) -> 2
A78: 76 | B78: 11 | C78: súlyfürdő | D78: felfüggsztési pontok száma | E78: 2 | F78: 1--2--3 db | G78: betegkarton | H78: 20191120 | I78: pl | L78: =RANDBETWEEN(1,3) -> 2
A79: 77 | B79: 11 | C79: súlyfürdő | D79: kiindulási súly | E79: 3 | F79: kg | G79: betegkarton | H79: 20191120 | I79: pl | L79: =IF(RAND()<0.5,0,3) -> 0
A80: 78 | B80: 12 | C80: súlyfürdő | D80: mozgásképesség | E80: 1 | F80: index:1<3 | G80: betegkarton | H80: 20191120 | I80: pl | L80: =RANDBETWEEN(1,3) -> 1
A81: 79 | B81: 12 | C81: súlyfürdő | D81: izomerő-nagyság | E81: 4 | F81: index:1<5 | G81: betegkarton | H81: 20191120 | I81: pl | L81: =RANDBETWEEN(1,5) -> 4
A82: 80 | B82: 12 | C82: súlyfürdő | D82: kor | E82: 70 | F82: év | G82: betegkarton | H82: 20191120 | I82: pl | L82: =IF(RAND()<0.33,50,IF(RAND()<0.66,60,70)) -> 50
A83: 81 | B83: 12 | C83: súlyfürdő | D83: csontsűrűség | E83: -4 | F83: dexa | G83: betegkarton | H83: 20191120 | I83: pl | L83: =RANDBETWEEN(-4,0) -> -1
A84: 82 | B84: 12 | C84: súlyfürdő | D84: diagnózis | E84: 4 | F84: a-b-c-d | G84: betegkarton | H84: 20191120 | I84: pl | L84: =RANDBETWEEN(1,4) -> 3
A85: 83 | B85: 12 | C85: súlyfürdő | D85: felfüggsztési pontok száma | E85: 1 | F85: 1--2--3 db | G85: betegkarton | H85: 20191120 | I85: pl | L85: =RANDBETWEEN(1,3) -> 1
A86: 84 | B86: 12 | C86: súlyfürdő | D86: kiindulási súly | E86: 3 | F86: kg | G86: betegkarton | H86: 20191120 | I86: pl | L86: =IF(RAND()<0.5,0,3) -> 3
A87: 85 | B87: 13 | C87: súlyfürdő | D87: mozgásképesség | E87: 3 | F87: index:1<3 | G87: betegkarton | H87: 20191120 | I87: pl | L87: =RANDBETWEEN(1,3) -> 3
A88: 86 | B88: 13 | C88: súlyfürdő | D88: izomerő-nagyság | E88: 3 | F88: index:1<5 | G88: betegkarton | H88: 20191120 | I88: pl | L88: =RANDBETWEEN(1,5) -> 1
A89: 87 | B89: 13 | C89: súlyfürdő | D89: kor | E89: 70 | F89: év | G89: betegkarton | H89: 20191120 | I89: pl | L89: =IF(RAND()<0.33,50,IF(RAND()<0.66,60,70)) -> 70
A90: 88 | B90: 13 | C90: súlyfürdő | D90: csontsűrűség | E90: -1 | F90: dexa | G90: betegkarton | H90: 20191120 | I90: pl | L90: =RANDBETWEEN(-4,0) -> 0
A91: 89 | B91: 13 | C91: súlyfürdő | D91: diagnózis | E91: 3 | F91: a-b-c-d | G91: betegkarton | H91: 20191120 | I91: pl | L91: =RANDBETWEEN(1,4) -> 1
A92: 90 | B92: 13 | C92: súlyfürdő | D92: felfüggsztési pontok száma | E92: 3 | F92: 1--2--3 db | G92: betegkarton | H92: 20191120 | I92: pl | L92: =RANDBETWEEN(1,3) -> 1
A93: 91 | B93: 13 | C93: súlyfürdő | D93: kiindulási súly | E93: 0 | F93: kg | G93: betegkarton | H93: 20191120 | I93: pl | L93: =IF(RAND()<0.5,0,3) -> 3
A94: 92 | B94: 14 | C94: súlyfürdő | D94: mozgásképesség | E94: 2 | F94: index:1<3 | G94: betegkarton | H94: 20191120 | I94: pl | L94: =RANDBETWEEN(1,3) -> 2
A95: 93 | B95: 14 | C95: súlyfürdő | D95: izomerő-nagyság | E95: 1 | F95: index:1<5 | G95: betegkarton | H95: 20191120 | I95: pl | L95: =RANDBETWEEN(1,5) -> 5
A96: 94 | B96: 14 | C96: súlyfürdő | D96: kor | E96: 70 | F96: év | G96: betegkarton | H96: 20191120 | I96: pl | L96: =IF(RAND()<0.33,50,IF(RAND()<0.66,60,70)) -> 70
A97: 95 | B97: 14 | C97: súlyfürdő | D97: csontsűrűség | E97: -3 | F97: dexa | G97: betegkarton | H97: 20191120 | I97: pl | L97: =RANDBETWEEN(-4,0) -> -1
A98: 96 | B98: 14 | C98: súlyfürdő | D98: diagnózis | E98: 1 | F98: a-b-c-d | G98: betegkarton | H98: 20191120 | I98: pl | L98: =RANDBETWEEN(1,4) -> 1
A99: 97 | B99: 14 | C99: súlyfürdő | D99: felfüggsztési pontok száma | E99: 1 | F99: 1--2--3 db | G99: betegkarton | H99: 20191120 | I99: pl | L99: =RANDBETWEEN(1,3) -> 3
A100: 98 | B100: 14 | C100: súlyfürdő | D100: kiindulási súly | E100: 3 | F100: kg | G100: betegkarton | H100: 20191120 | I100: pl | L100: =IF(RAND()<0.5,0,3) -> 3

Sheet teves attr
A5: Azonos�t�: | B5: 9468980 | C5: Objektumok: | D5: 8 | E5: Attrib�tumok: | F5: 6 | G5: Lepcs�k: | H5: 8 | I5: Eltol�s: | J5: 0 | K5: Le�r�s: | L5: COCO STD: 9468980
A7: Rangsor | B7: X(A1) | C7: X(A2) | D7: X(A3) | E7: X(A4) | F7: X(A5) | G7: X(A6) | H7: Y(A7)
A8: O1 | B8: 5 | C8: 1 | D8: 6 | E8: 6 | F8: 3 | G8: 1 | H8: 14400
A9: O2 | B9: 6 | C9: 1 | D9: 6 | E9: 6 | F9: 7 | G9: 1 | H9: 2400
A10: O3 | B10: 6 | C10: 1 | D10: 1 | E10: 2 | F10: 1 | G10: 7 | H10: 5200
A11: O4 | B11: 6 | C11: 1 | D11: 1 | E11: 1 | F11: 2 | G11: 8 | H11: 6500
A12: O5 | B12: 2 | C12: 1 | D12: 4 | E12: 4 | F12: 6 | G12: 4 | H12: 4300
A13: O6 | B13: 4 | C13: 8 | D13: 6 | E13: 6 | F13: 7 | G13: 1 | H13: 5600
A14: O7 | B14: 3 | C14: 1 | D14: 3 | E14: 3 | F14: 5 | G14: 5 | H14: 6100
A15: O8 | B15: 1 | C15: 1 | D15: 5 | E15: 5 | F15: 4 | G15: 5 | H15: 7200
A17: L�pcs�k(1) | B17: X(A1) | C17: X(A2) | D17: X(A3) | E17: X(A4) | F17: X(A5) | G17: X(A6)
A18: S1 | B18: (3707.5+6525.1)/(2)=5116.3 | C18: (543.8+0)/(2)=271.9 | D18: (0+0)/(2)=0 | E18: (1285.3+0)/(2)=642.65 | F18: (4597.3+6426.3)/(2)=5511.75 | G18: (1829+2372.8)/(2)=2100.9
A19: S2 | B19: (3707.5+5437.6)/(2)=4572.55 | C19: (0+0)/(2)=0 | D19: (0+0)/(2)=0 | E19: (0+0)/(2)=0 | F19: (4597.3+6426.3)/(2)=5511.75 | G19: (1829+0)/(2)=914.5
A20: S3 | B20: (3707.5+5437.6)/(2)=4572.55 | C20: (0+0)/(2)=0 | D20: (0+0)/(2)=0 | E20: (0+0)/(2)=0 | F20: (4597.3+6426.3)/(2)=5511.75 | G20: (1829+0)/(2)=914.5
A21: S4 | B21: (3707.5+5437.6)/(2)=4572.55 | C21: (0+0)/(2)=0 | D21: (0+0)/(2)=0 | E21: (0+0)/(2)=0 | F21: (2867.1+593.2)/(2)=1730.15 | G21: (0+0)/(2)=0
A22: S5 | B22: (3707.5+5437.6)/(2)=4572.55 | C22: (0+0)/(2)=0 | D22: (0+0)/(2)=0 | E22: (0+0)/(2)=0 | F22: (1779.6+593.2)/(2)=1186.4 | G22: (0+0)/(2)=0
A23: S6 | B23: (0+0)/(2)=0 | C23: (0+0)/(2)=0 | D23: (0+0)/(2)=0 | E23: (0+0)/(2)=0 | F23: (0+0)/(2)=0 | G23: (0+0)/(2)=0
A24: S7 | B24: (0+0)/(2)=0 | C24: (0+0)/(2)=0 | D24: (0+0)/(2)=0 | E24: (0+0)/(2)=0 | F24: (0+0)/(2)=0 | G24: (0+0)/(2)=0
A25: S8 | B25: (0+0)/(2)=0 | C25: (0+0)/(2)=0 | D25: (0+0)/(2)=0 | E25: (0+0)/(2)=0 | F25: (0+0)/(2)=0 | G25: (0+0)/(2)=0
A27: L�pcs�k(2) | B27: X(A1) | C27: X(A2) | D27: X(A3) | E27: X(A4) | F27: X(A5) | G27: X(A6)
A28: S1 | B28: 5116.3 | C28: 271.9 | D28: 0 | E28: 642.6 | F28: 5511.8 | G28: 2100.9
A29: S2 | B29: 4572.5 | C29: 0 | D29: 0 | E29: 0 | F29: 5511.8 | G29: 914.5
A30: S3 | B30: 4572.5 | C30: 0 | D30: 0 | E30: 0 | F30: 5511.8 | G30: 914.5
A31: S4 | B31: 4572.5 | C31: 0 | D31: 0 | E31: 0 | F31: 1730.2 | G31: 0
A32: S5 | B32: 4572.5 | C32: 0 | D32: 0 | E32: 0 | F32: 1186.4 | G32: 0
A33: S6 | B33: 0 | C33: 0 | D33: 0 | E33: 0 | F33: 0 | G33: 0
A34: S7 | B34: 0 | C34: 0 | D34: 0 | E34: 0 | F34: 0 | G34: 0
A35: S8 | B35: 0 | C35: 0 | D35: 0 | E35: 0 | F35: 0 | G35: 0
A37: COCO:STD | B37: X(A1) | C37: X(A2) | D37: X(A3) | E37: X(A4) | F37: X(A5) | G37: X(A6) | H37: Becsl�s | I37: T�ny+0 | J37: Delta | K37: Delta/T�ny
A38: O1 | B38: 4572.5 | C38: 271.9 | D38: 0 | E38: 0 | F38: 5511.8 | G38: 2100.9 | H38: 12457.1 | I38: 14400 | J38: 1942.9 | K38: 13.49
A39: O2 | B39: 0 | C39: 271.9 | D39: 0 | E39: 0 | F39: 0 | G39: 2100.9 | H39: 2372.8 | I39: 2400 | J39: 27.2 | K39: 1.13
A40: O3 | B40: 0 | C40: 271.9 | D40: 0 | E40: 0 | F40: 5511.8 | G40: 0 | H40: 5783.6 | I40: 5200 | J40: -583.6 | K40: -11.22
A41: O4 | B41: 0 | C41: 271.9 | D41: 0 | E41: 642.6 | F41: 5511.8 | G41: 0 | H41: 6426.3 | I41: 6500 | J41: 73.7 | K41: 1.13
A42: O5 | B42: 4572.5 | C42: 271.9 | D42: 0 | E42: 0 | F42: 0 | G42: 0 | H42: 4844.4 | I42: 4300 | J42: -544.4 | K42: -12.66
A43: O6 | B43: 4572.5 | C43: 0 | D43: 0 | E43: 0 | F43: 0 | G43: 2100.9 | H43: 6673.4 | I43: 5600 | J43: -1073.4 | K43: -19.17
A44: O7 | B44: 4572.5 | C44: 271.9 | D44: 0 | E44: 0 | F44: 1186.4 | G44: 0 | H44: 6030.8 | I44: 6100 | J44: 69.2 | K44: 1.13
A45: O8 | B45: 5116.3 | C45: 271.9 | D45: 0 | E45: 0 | F45: 1730.2 | G45: 0 | H45: 7118.3 | I45: 7200 | J45: 81.7 | K45: 1.13
A47: S1 �sszeg: | B47: 13643.5
A48: S8 �sszeg: | B48: 0
A49: Becsl�s �sszeg: | B49: 51706.7
A50: T�ny �sszeg: | B50: 51700
A51: T�ny-becsl�s elt�r�s: | B51: 6.7
A52: T�ny n�gyzet�sszeg:
A53: Becsl�s n�gyzet�sszeg:
A54: N�gyzet�sszeg hiba: | B54: 0
A56: Open url
A58: Maxim�lis mem�ria haszn�lat: 1.32 Mb
A59: A futtat�s id�tartama: 0.07 mp (0 p)

Sheet attr kiesik
A5: Azonos�t�: | B5: 3870015 | C5: Objektumok: | D5: 8 | E5: Attrib�tumok: | F5: 5 | G5: Lepcs�k: | H5: 8 | I5: Eltol�s: | J5: 0 | K5: Le�r�s: | L5: COCO STD: 3870015
A7: Rangsor | B7: X(A1) | C7: X(A2) | D7: X(A3) | E7: X(A4) | F7: X(A5) | G7: Y(A6)
A8: O1 | B8: 5 | C8: 1 | D8: 6 | E8: 6 | F8: 3 | G8: 14400
A9: O2 | B9: 6 | C9: 1 | D9: 6 | E9: 6 | F9: 7 | G9: 2400
A10: O3 | B10: 6 | C10: 1 | D10: 1 | E10: 2 | F10: 1 | G10: 5200
A11: O4 | B11: 6 | C11: 1 | D11: 1 | E11: 1 | F11: 2 | G11: 6500
A12: O5 | B12: 2 | C12: 1 | D12: 4 | E12: 4 | F12: 6 | G12: 4300
A13: O6 | B13: 4 | C13: 8 | D13: 6 | E13: 6 | F13: 7 | G13: 5600
A14: O7 | B14: 3 | C14: 1 | D14: 3 | E14: 3 | F14: 5 | G14: 6100
A15: O8 | B15: 1 | C15: 1 | D15: 5 | E15: 5 | F15: 4 | G15: 7200
A17: L�pcs�k(1) | B17: X(A1) | C17: X(A2) | D17: X(A3) | E17: X(A4) | F17: X(A5)
A18: S1 | B18: (1946.9+4672.5)/(2)=3309.7 | C18: (0+1557.5)/(2)=778.75 | D18: (0+0)/(2)=0 | E18: (3504.4+778.8)/(2)=2141.6 | F18: (2823+7008.8)/(2)=4915.9
A19: S2 | B19: (1946.9+4672.5)/(2)=3309.7 | C19: (0+0)/(2)=0 | D19: (0+0)/(2)=0 | E19: (2238.9+778.8)/(2)=1508.85 | F19: (2823+7008.8)/(2)=4915.9
A20: S3 | B20: (1946.9+4672.5)/(2)=3309.7 | C20: (0+0)/(2)=0 | D20: (0+0)/(2)=0 | E20: (2238.9+778.8)/(2)=1508.85 | F20: (2823+7008.8)/(2)=4915.9
A21: S4 | B21: (1946.9+4672.5)/(2)=3309.7 | C21: (0+0)/(2)=0 | D21: (0+0)/(2)=0 | E21: (2238.9+778.8)/(2)=1508.85 | F21: (2823+0)/(2)=1411.5
A22: S5 | B22: (1946.9+4672.5)/(2)=3309.7 | C22: (0+0)/(2)=0 | D22: (0+0)/(2)=0 | E22: (2238.9+778.8)/(2)=1508.85 | F22: (1752.2+0)/(2)=876.1
A23: S6 | B23: (0+0)/(2)=0 | C23: (0+0)/(2)=0 | D23: (0+0)/(2)=0 | E23: (2238.9+778.8)/(2)=1508.85 | F23: (0+0)/(2)=0
A24: S7 | B24: (0+0)/(2)=0 | C24: (0+0)/(2)=0 | D24: (0+0)/(2)=0 | E24: (0+0)/(2)=0 | F24: (0+0)/(2)=0
A25: S8 | B25: (0+0)/(2)=0 | C25: (0+0)/(2)=0 | D25: (0+0)/(2)=0 | E25: (0+0)/(2)=0 | F25: (0+0)/(2)=0
A27: L�pcs�k(2) | B27: X(A1) | C27: X(A2) | D27: X(A3) | E27: X(A4) | F27: X(A5)
A28: S1 | B28: 3309.7 | C28: 778.8 | D28: 0 | E28: 2141.6 | F28: 4915.9
A29: S2 | B29: 3309.7 | C29: 0 | D29: 0 | E29: 1508.8 | F29: 4915.9
A30: S3 | B30: 3309.7 | C30: 0 | D30: 0 | E30: 1508.8 | F30: 4915.9
A31: S4 | B31: 3309.7 | C31: 0 | D31: 0 | E31: 1508.8 | F31: 1411.5
A32: S5 | B32: 3309.7 | C32: 0 | D32: 0 | E32: 1508.8 | F32: 876.1
A33: S6 | B33: 0 | C33: 0 | D33: 0 | E33: 1508.8 | F33: 0
A34: S7 | B34: 0 | C34: 0 | D34: 0 | E34: 0 | F34: 0
A35: S8 | B35: 0 | C35: 0 | D35: 0 | E35: 0 | F35: 0
A37: COCO:STD | B37: X(A1) | C37: X(A2) | D37: X(A3) | E37: X(A4) | F37: X(A5) | G37: Becsl�s | H37: T�ny+0 | I37: Delta | J37: Delta/T�ny
A38: O1 | B38: 3309.7 | C38: 778.8 | D38: 0 | E38: 1508.8 | F38: 4915.9 | G38: 10513.2 | H38: 14400 | I38: 3886.8 | J38: 26.99
A39: O2 | B39: 0 | C39: 778.8 | D39: 0 | E39: 1508.8 | F39: 0 | G39: 2287.6 | H39: 2400 | I39: 112.4 | J39: 4.68
A40: O3 | B40: 0 | C40: 778.8 | D40: 0 | E40: 1508.8 | F40: 4915.9 | G40: 7203.5 | H40: 5200 | I40: -2003.5 | J40: -38.53
A41: O4 | B41: 0 | C41: 778.8 | D41: 0 | E41: 2141.6 | F41: 4915.9 | G41: 7836.2 | H41: 6500 | I41: -1336.2 | J41: -20.56
A42: O5 | B42: 3309.7 | C42: 778.8 | D42: 0 | E42: 1508.8 | F42: 0 | G42: 5597.3 | H42: 4300 | I42: -1297.3 | J42: -30.17
A43: O6 | B43: 3309.7 | C43: 0 | D43: 0 | E43: 1508.8 | F43: 0 | G43: 4818.5 | H43: 5600 | I43: 781.5 | J43: 13.96
A44: O7 | B44: 3309.7 | C44: 778.8 | D44: 0 | E44: 1508.8 | F44: 876.1 | G44: 6473.4 | H44: 6100 | I44: -373.4 | J44: -6.12
A45: O8 | B45: 3309.7 | C45: 778.8 | D45: 0 | E45: 1508.8 | F45: 1411.5 | G45: 7008.8 | H45: 7200 | I45: 191.2 | J45: 2.66
A47: S1 �sszeg: | B47: 11146
A48: S8 �sszeg: | B48: 0
A49: Becsl�s �sszeg: | B49: 51738.5
A50: T�ny �sszeg: | B50: 51700
A51: T�ny-becsl�s elt�r�s: | B51: 38.5
A52: T�ny n�gyzet�sszeg:
A53: Becsl�s n�gyzet�sszeg:
A54: N�gyzet�sszeg hiba: | B54: 0
A56: Open url
A58: Maxim�lis mem�ria haszn�lat: 1.32 Mb
A59: A futtat�s id�tartama: 0.03 mp (0 p)

Sheet y0 solver
A3: nyers | B3: attr1 | C3: attr2 | D3: attr3 | E3: attr4 | F3: attr5 | G3: attr6
A4: pályázat1 | B4: 26 | C4: 69 | D4: 100 | E4: 71 | F4: 69 | G4: 22
A5: pályázat2 | B5: 70 | C5: 60 | D5: 24 | E5: 58 | F5: 33 | G5: 12
A6: pályázat3 | B6: 100 | C6: 100 | D6: 19 | E6: 61 | F6: 69 | G6: 50
A7: pályázat4 | B7: 12 | C7: 100 | D7: 47 | E7: 100 | F7: 43 | G7: 80
A8: pályázat5 | B8: 81 | C8: 59 | D8: 41 | E8: 29 | F8: 31 | G8: 100
A9: pályázat6 | B9: 97 | C9: 98 | D9: 80 | E9: 99 | F9: 72 | G9: 89
A10: pályázat7 | B10: 56 | C10: 78 | D10: 43 | E10: 71 | F10: 100 | G10: 62
A11: pályázat8 | B11: 79 | C11: 36 | D11: 18 | E11: 87 | F11: 76 | G11: 20
A13: rangsorok | B13: =B3 -> attr1 | C13: =C3 -> attr2 | D13: attr3 | E13: attr4 | F13: attr5 | G13: attr6
A14: =A4 -> pályázat1 | B14: =RANK(B4,B$4:B$11,0) -> 7 | C14: =RANK(C4,C$4:C$11,0) -> 5 | D14: 1 | E14: 4 | F14: 4 | G14: 6
A15: =A5 -> pályázat2 | B15: =RANK(B5,B$4:B$11,0) -> 5 | C15: 6 | D15: 6 | E15: 7 | F15: 7 | G15: 8
A16: pályázat3 | B16: =RANK(B6,B$4:B$11,0) -> 1 | C16: 1 | D16: 7 | E16: 6 | F16: 4 | G16: 5
A17: pályázat4 | B17: =RANK(B7,B$4:B$11,0) -> 8 | C17: 1 | D17: 3 | E17: 1 | F17: 6 | G17: 3
A18: pályázat5 | B18: =RANK(B8,B$4:B$11,0) -> 3 | C18: 7 | D18: 5 | E18: 8 | F18: 8 | G18: 1
A19: pályázat6 | B19: =RANK(B9,B$4:B$11,0) -> 2 | C19: 3 | D19: 2 | E19: 2 | F19: 3 | G19: 2
A20: pályázat7 | B20: =RANK(B10,B$4:B$11,0) -> 6 | C20: 4 | D20: 4 | E20: 4 | F20: 1 | G20: 4
A21: pályázat8 | B21: =RANK(B11,B$4:B$11,0) -> 4 | C21: 8 | D21: 8 | E21: 3 | F21: 2 | G21: 7
A23: lépcsők | B23: =B13 -> attr1 | C23: =C13 -> attr2 | D23: attr3 | E23: attr4 | F23: attr5 | G23: attr6 | H23: alias | J23: =B23 -> attr1 | K23: =C23 -> attr2 | L23: attr3 | M23: attr4 | N23: attr5 | O23: attr6
A24: 1 | B24: 345.3833692 | C24: 7.000057468 | D24: 7.000057468 | E24: 367.7609091 | F24: 620.2388606 | G24: 652.6164024 | H24: arany | I24: l1-l2 | J24: =B24-B25 -> 0.9999999999 | K24: =C24-C25 -> 1 | L24: =D24-D25 -> 1 | M24: =E24-E25 -> 334.8833115 | N24: =F24-F25 -> 1 | O24: =G24-G25 -> 646.6163449
A25: 2 | B25: 344.3833692 | C25: 6.000057468 | D25: 6.000057468 | E25: 32.87759758 | F25: 619.2388606 | G25: 6.000057454 | H25: ezüst | J25: =B25-B26 -> 0.9999999999 | K25: 1 | L25: 1 | M25: 1 | N25: 1 | O25: 1
A26: 3 | B26: 343.3833692 | C26: 5.000057468 | D26: 5.000057468 | E26: 31.87759758 | F26: 618.2388606 | G26: 5.000057454 | H26: bronz | J26: 0.9999999999 | K26: 1 | L26: 1 | M26: 1 | N26: 1 | O26: 1
A27: 4 | B27: 342.3833692 | C27: 4.000057468 | D27: 4.000057468 | E27: 30.87759758 | F27: 617.2388606 | G27: 4.000057454 | H27: … | J27: 0.9999999999 | K27: 1 | L27: 1 | M27: 1 | N27: 1 | O27: 1
A28: 5 | B28: 341.3833692 | C28: 3.000057468 | D28: 3.000057468 | E28: 29.87759758 | F28: 616.2388606 | G28: 3.000057454 | H28: … | J28: 0.9999999999 | K28: 1 | L28: 1 | M28: 1 | N28: 1 | O28: 1
A29: 6 | B29: 340.3833692 | C29: 2.000057468 | D29: 2.000057468 | E29: 28.87759758 | F29: 615.2388606 | G29: 2.000057454 | H29: … | J29: 0.9999999999 | K29: 1 | L29: 1 | M29: 1 | N29: 1 | O29: 1
A30: 7 | B30: 339.3833692 | C30: 1.000057468 | D30: 1.000057468 | E30: 27.87759758 | F30: 614.2388606 | G30: 1.000057454 | H30: … | I30: l7-l8 | J30: 339.3833117 | K30: 1 | L30: 1 | M30: 27.87754011 | N30: 614.2388049 | O30: 1
A31: 8 | B31: 5.746789648e-05 | C31: 5.746798222e-05 | D31: 5.746794551e-05 | E31: 5.746787757e-05 | F31: 5.561626366e-05 | G31: 5.745388304e-05 | H31: …
A32: 1 | B32: 2 | C32: 3 | D32: 4 | E32: 5 | F32: 6 | G32: 7 | H32: 8
A34: fkeres | B34: =B3 -> attr1 | C34: attr2 | D34: attr3 | E34: attr4 | F34: attr5 | G34: attr6 | H34: Y0 | I34: Becslés | J34: elteres
A35: =A4 -> pályázat1 | B35: =VLOOKUP(B14,$A$24:$G$31,B$32,0) -> 339.3833692 | C35: =VLOOKUP(C14,$A$24:$G$31,C$32,0) -> 3.000057468 | D35: 7.000057468 | E35: 30.87759758 | F35: 617.2388606 | G35: 2.000057454 | H35: 1000 | I35: =SUM(B35:G35) -> 999.4999997 | J35: =ABS(H35-I35) -> 0.500000271
A36: =A5 -> pályázat2 | B36: =VLOOKUP(B15,$A$24:$G$31,B$32,0) -> 341.3833692 | C36: 2.000057468 | D36: 2.000057468 | E36: 27.87759758 | F36: 614.2388606 | G36: 5.745388304e-05 | H36: 1000 | I36: =SUM(B36:G36) -> 987.4999997 | J36: =ABS(H36-I36) -> 12.50000027
A37: pályázat3 | B37: =VLOOKUP(B16,$A$24:$G$31,B$32,0) -> 345.3833692 | C37: 7.000057468 | D37: 1.000057468 | E37: 28.87759758 | F37: 617.2388606 | G37: 3.000057454 | H37: 1000 | I37: 1002.5 | J37: 2.499999728
A38: pályázat4 | B38: =VLOOKUP(B17,$A$24:$G$31,B$32,0) -> 5.746789648e-05 | C38: 7.000057468 | D38: 5.000057468 | E38: 367.7609091 | F38: 615.2388606 | G38: 5.000057454 | H38: 1000 | I38: 999.9999995 | J38: 5.107360721e-07
A39: pályázat5 | B39: =VLOOKUP(B18,$A$24:$G$31,B$32,0) -> 343.3833692 | C39: 1.000057468 | D39: 3.000057468 | E39: 5.746787757e-05 | F39: 5.561626366e-05 | G39: 652.6164024 | H39: 1000 | I39: 999.9999996 | J39: 4.032705192e-07
A40: pályázat6 | B40: =VLOOKUP(B19,$A$24:$G$31,B$32,0) -> 344.3833692 | C40: 5.000057468 | D40: 6.000057468 | E40: 32.87759758 | F40: 618.2388606 | G40: 6.000057454 | H40: 1000 | I40: 1012.5 | J40: 12.49999973
A41: pályázat7 | B41: =VLOOKUP(B20,$A$24:$G$31,B$32,0) -> 340.3833692 | C41: 4.000057468 | D41: 4.000057468 | E41: 30.87759758 | F41: 620.2388606 | G41: 4.000057454 | H41: 1000 | I41: 1003.5 | J41: 3.499999729
A42: =A11 -> pályázat8 | B42: =VLOOKUP(B21,$A$24:$G$31,B$32,0) -> 342.3833692 | C42: 5.746798222e-05 | D42: 5.746794551e-05 | E42: 31.87759758 | F42: 619.2388606 | G42: 1.000057454 | H42: 1000 | I42: 994.4999997 | J42: 5.500000271
J43: hiba
J44: =SUMSQ(J35:J42) -> 361.5

Sheet solver alapok
D2: tipp | E2: 3 | F2: 2 | G2: 1 | H2: eredmeny | I2: elvaras | J2: hiba
D3: 4567 | E3: =INT(D3/10) -> 456 | F3: =INT(E3/10) -> 45 | G3: 4 | H3: =D3-E3-F3-G3 -> 4062 | I3: 3333 | J3: =H3-I3 -> 729
